bitfinex-derivatives/quotes_SOLF0:USTF0_20250705
["timestamp","ask_amount","ask_price","bid_price","bid_amount"]
[1751741812149,20.20280079,146.47,146.46,195.86]
[1751741814151,22.76385697,146.47,146.46,195.86]
[1751741818552,18.05336718,146.47,146.46,195.86]
[1751741818753,15.492311,146.47,146.46,195.86]
[1751741819254,11.70391077,146.47,146.43,46.36]
[1751741819453,3.03719977,146.44,146.39,49.35719977]
[1751741819752,18.53161077,146.43,146.4,202.6886]
[1751741820055,9.86489977,146.43,146.41,195.86]
[1751741820753,9.86489977,146.43,146.4,6.8286]
[1751741820950,9.86489977,146.43,146.41,202.6884]
[1751741821150,3.03719977,146.43,146.41,202.6884]
[1751741821351,9.86439977,146.44,146.41,202.6884]
[1751741821658,8.69958245,146.43,146.41,195.86]
[1751741822559,6.8275,146.43,146.42,195.88]
[1751741822764,20.23782361,146.43,146.42,195.88]
[1751741824964,20.23782361,146.43,146.4,9.86579977]
[1751741825167,6.8275,146.43,146.41,195.88]
[1751741827360,6.8279,146.42,146.41,195.88]
[1751741827565,25.76836086,146.42,146.39,56.18629977]
[1751741827766,9.86509977,146.42,146.4,195.88]
[1751741828261,9.86509977,146.42,146.39,56.18629977]
[1751741828466,9.86509977,146.42,146.4,195.88]
[1751741829466,6.8284,146.41,146.4,195.88]
[1751741830164,6.8284,146.41,146.4,195.9]
[1751741830469,9.86529977,146.42,146.4,195.9]
[1751741836774,9.86529977,146.42,146.4,202.7288]
[1751741836973,9.86489977,146.43,146.4,202.7288]
[1751741837173,3.03719977,146.43,146.4,195.9]
[1751741838574,6.828,146.42,146.4,195.9]
[1751741839873,9.86489977,146.43,146.4,202.7287]
[1751741842376,6.828,146.42,146.4,202.7287]
[1751741843672,2.2346,146.45,146.41,6.8281]
[1751741843673,3.03719977,146.44,146.41,6.8281]
[1751741843973,8.61557647,146.43,146.41,6.8281]
[1751741844174,3.03719977,146.44,146.41,6.8281]
[1751741844375,8.61557647,146.43,146.41,6.8281]
[1751741844570,6.8276,146.43,146.41,6.8281]
[1751741844880,6.8276,146.43,146.4,202.7287]
[1751741845175,6.8276,146.43,146.4,205.76589977]
[1751741846471,6.8272,146.44,146.41,6.8283]
[1751741846679,9.86439977,146.44,146.41,6.8283]
[1751741846878,3.03719977,146.44,146.41,6.8283]
[1751741847071,9.86489977,146.43,146.4,205.76579977]
[1751741847271,9.86489977,146.43,146.4,202.7286]
[1751741847475,6.8277,146.43,146.4,205.76579977]
[1751741848180,9.86439977,146.44,146.41,6.8282]
[1751741849978,4.66506662,146.43,146.41,6.8282]
[1751741850178,9.86439977,146.44,146.41,6.8282]
[1751741850474,11.49316852,146.43,146.41,6.8282]
[1751741850679,6.8275,146.43,146.41,6.8282]
[1751741850873,6.8275,146.43,146.4,198.93719977]
[1751741851081,9.86539977,146.42,146.4,195.9]
[1751741851779,9.86539977,146.42,146.41,195.88]
[1751741851970,18.50615815,146.42,146.41,195.88]
[1751741854581,13.31432218,146.42,146.41,195.88]
[1751741855080,8.64075838,146.42,146.41,195.88]
[1751741855684,6.8275,146.43,146.41,202.7084]
[1751741855872,3.03719977,146.44,146.41,202.7084]
[1751741856076,8.6443003,146.43,146.41,202.7084]
[1751741856276,9.86439977,146.44,146.41,202.7084]
[1751741856476,13.31998819,146.43,146.41,202.7084]
[1751741856778,9.86439977,146.44,146.41,202.7084]
[1751741857079,13.31085004,146.43,146.41,202.7084]
[1751741857281,9.86439977,146.44,146.41,202.7084]
[1751741857480,13.31306617,146.43,146.41,202.7084]
[1751741857680,9.86439977,146.44,146.41,202.7084]
[1751741857875,13.31306617,146.43,146.41,202.7084]
[1751741858072,9.86439977,146.44,146.41,202.7084]
[1751741858273,13.31306617,146.43,146.41,202.7084]
[1751741858472,9.86439977,146.44,146.41,202.7084]
[1751741858672,8.63962305,146.43,146.41,202.7084]
[1751741858880,9.86439977,146.44,146.41,202.7084]
[1751741859083,8.63927166,146.43,146.41,202.7084]
[1751741859381,9.86439977,146.44,146.41,202.7084]
[1751741859581,13.32843368,146.43,146.41,202.7084]
[1751741859882,9.86439977,146.44,146.41,202.7084]
[1751741860080,13.32843368,146.43,146.41,202.7084]
[1751741860383,9.86439977,146.44,146.41,202.7084]
[1751741860582,13.33145151,146.43,146.41,202.7084]
[1751741860783,9.86439977,146.44,146.41,202.7084]
[1751741860979,13.33145151,146.43,146.41,202.7084]
[1751741861281,9.86439977,146.44,146.41,202.7084]
[1751741861482,13.33471982,146.43,146.41,202.7084]
[1751741861681,9.86439977,146.44,146.41,202.7084]
[1751741861878,13.33488412,146.43,146.41,202.7084]
[1751741862083,9.86439977,146.44,146.41,202.7084]
[1751741862283,15.89634827,146.43,146.41,202.7084]
[1751741862485,9.86439977,146.44,146.41,202.7084]
[1751741862686,15.90001067,146.43,146.41,202.7084]
[1751741862988,9.86439977,146.44,146.41,202.7084]
[1751741863186,15.90001067,146.43,146.41,202.7084]
[1751741863386,8.64889417,146.42,146.41,202.7084]
[1751741864385,13.34351931,146.42,146.41,202.7084]
[1751741866387,8.64889417,146.42,146.41,202.7084]
[1751741866687,13.33261353,146.42,146.41,202.7084]
[1751741874190,20.16051353,146.42,146.41,195.88]
[1751741874496,23.84357793,146.42,146.41,195.84]
[1751741874795,23.84357793,146.42,146.39,46.32]
[1751741874990,23.84357793,146.41,146.4,195.84]
[1751741876289,30.67197793,146.41,146.4,195.84]
[1751741876798,23.84357793,146.41,146.4,195.84]
[1751741878697,23.84357793,146.41,146.39,46.32]
[1751741878896,23.84357793,146.4,146.39,46.32]
[1751741879098,30.67247793,146.4,146.39,195.86]
[1751741880099,25.75956046,146.4,146.39,195.86]
[1751741880599,23.1987133,146.4,146.39,195.86]
[1751741881196,13.33261353,146.4,146.39,195.86]
[1751741884498,20.16151353,146.4,146.39,195.86]
[1751741884794,22.71494024,146.4,146.39,195.86]
[1751741888200,22.71494024,146.4,146.37,9.86729977]
[1751741888401,9.86609977,146.4,146.39,195.86]
[1751741888701,19.23026504,146.4,146.38,195.86]
[1751741888894,16.67804851,146.39,146.38,195.86]
[1751741889096,23.50764851,146.39,146.38,195.86]
[1751741889499,23.50778674,146.39,146.38,195.86]
[1751741889700,23.50778674,146.39,146.35,56.18809977]
[1751741889701,6.8298,146.38,146.35,56.18809977]
[1751741889999,6.8298,146.38,146.36,195.88]
[1751741890605,6.8298,146.38,146.35,46.32]
[1751741890606,6.8306,146.37,146.35,46.32]
[1751741890805,6.8306,146.37,146.36,195.88]
[1751741894004,6.8306,146.37,146.35,46.32]
[1751741894200,6.8306,146.37,146.36,195.88]
[1751741894806,6.8306,146.37,146.35,46.32]
[1751741895104,6.8306,146.37,146.36,195.88]
[1751741895304,2.374,146.41,146.36,195.88]
[1751741895507,3.03719977,146.39,146.36,195.88]
[1751741895702,4.83460254,146.38,146.36,195.88]
[1751741895906,3.03719977,146.39,146.36,195.88]
[1751741896203,4.83431262,146.38,146.36,195.88]
[1751741896398,3.03719977,146.39,146.36,195.88]
[1751741896598,6.8299,146.38,146.36,195.88]
[1751741899510,6.8299,146.38,146.36,202.7107]
[1751741900615,6.8299,146.38,146.36,195.88]
[1751741903111,9.86669977,146.39,146.36,202.7106]
[1751741903412,3.03719977,146.39,146.36,202.7106]
[1751741904312,6.83,146.38,146.36,202.7106]
[1751741905511,6.83,146.38,146.36,6.8306]
[1751741905715,6.83,146.38,146.37,195.88]
[1751741908811,2.374,146.41,146.37,195.88]
[1751741909017,16.65827772,146.4,146.37,195.88]
[1751741909220,13.62107795,146.39,146.37,195.88]
[1751741909512,6.8296,146.39,146.37,195.88]
[1751741911213,3.03719977,146.38,146.35,46.32]
[1751741911417,3.03719977,146.36,146.35,46.32]
[1751741911616,16.6566625,146.36,146.31,46.32]
[1751741911816,3.03719977,146.32,146.31,46.32]
[1751741912118,7.88424614,146.32,146.31,46.32]
[1751741912319,7.88424614,146.32,146.31,242.52]
[1751741913220,16.65204827,146.32,146.31,242.52]
[1751741913624,23.48464827,146.32,146.31,242.52]
[1751741914317,13.6148485,146.32,146.31,242.52]
[1751741914523,13.6148485,146.32,146.31,245.55719977]
[1751741914820,9.56526431,146.37,146.35,6.8309]
[1751741915020,9.56526431,146.37,146.36,199.31719977]
[1751741915223,25.68340633,146.37,146.36,199.31719977]
[1751741915523,25.68340633,146.37,146.36,206.14789977]
[1751741915716,18.32134452,146.37,146.36,206.14789977]
[1751741916819,8.75608021,146.37,146.36,206.14789977]
[1751741917228,6.8293,146.39,146.36,206.14789977]
[1751741917427,8.75406894,146.38,146.37,3.03719977]
[1751741917820,8.75406894,146.38,146.36,196.28]
[1751741918028,4.74855507,146.4,146.36,196.28]
[1751741918227,11.27604193,146.39,146.36,196.28]
[1751741918423,15.58574821,146.38,146.36,196.28]
[1751741918716,6.8302,146.38,146.36,196.28]
[1751741919930,6.8303,146.37,146.36,196.28]
[1751741920323,15.58575113,146.37,146.36,196.28]
[1751741920824,6.8307,146.36,146.35,46.32]
[1751741921030,4.74855507,146.38,146.31,53.2926]
[1751741921227,8.69102977,146.37,146.31,53.2926]
[1751741921529,6.8319,146.34,146.32,196.38]
[1751741922329,6.8319,146.34,146.33,196.4]
[1751741927446,6.8319,146.34,146.31,46.46]
[1751741927644,6.8319,146.34,146.32,196.34]
[1751741931750,6.8319,146.34,146.31,53.293]
[1751741931951,6.8319,146.34,146.32,196.28]
[1751741932353,6.8321,146.33,146.31,46.46]
[1751741932554,6.8321,146.33,146.32,196.28]
[1751741932944,6.8321,146.33,146.32,196.3]
[1751741933656,16.08476633,146.33,146.27,636.42]
[1751741933855,13.54895457,146.32,146.28,196.32]
[1751741934051,4.74855507,146.34,146.28,196.32]
[1751741934246,6.833,146.32,146.28,203.1542]
[1751741935655,6.833,146.32,146.29,6.834]
[1751741936453,4.74855507,146.34,146.3,196.36]
[1751741936755,16.0451306,146.33,146.3,196.38]
[1751741936958,6.8334,146.31,146.3,196.38]
[1751741941857,6.8336,146.3,146.27,643.2547]
[1751741942056,4.74855507,146.32,146.27,46.48]
[1751741942262,4.74855507,146.3,146.28,196.38]
[1751741942461,6.8344,146.29,146.27,46.48]
[1751741942662,4.74855507,146.3,146.27,46.48]
[1751741942960,4.74855507,146.3,146.28,196.42]
[1751741943162,6.8344,146.29,146.28,196.42]
[1751741943562,6.8344,146.29,146.28,196.44]
[1751741945161,11.58225507,146.3,146.28,196.44]
[1751741945561,4.74855507,146.3,146.28,196.44]
[1751741946571,6.834,146.29,146.28,196.44]
[1751741946769,11.90172536,146.34,146.28,196.44]
[1751741946961,20.6694493,146.33,146.28,196.44]
[1751741947268,6.8333,146.31,146.29,196.46]
[1751741948071,6.8328,146.32,146.29,203.294]
[1751741949072,6.8333,146.31,146.29,196.46]
[1751741949674,6.8328,146.32,146.29,196.46]
[1751741950571,6.8331,146.31,146.29,196.46]
[1751741952273,6.8328,146.32,146.29,196.46]
[1751741952464,6.8328,146.32,146.29,203.2939]
[1751741954575,6.8332,146.31,146.29,196.46]
[1751741956377,6.8328,146.32,146.29,203.294]
[1751741956577,8.72607332,146.31,146.29,196.46]
[1751741956782,4.74855507,146.34,146.29,196.46]
[1751741956987,6.8328,146.32,146.29,203.2938]
[1751741957185,8.72607994,146.31,146.29,203.2938]
[1751741957385,6.8328,146.32,146.29,203.2938]
[1751741957685,8.72613002,146.31,146.29,203.2938]
[1751741957983,6.8328,146.32,146.29,203.2938]
[1751741958283,8.74511587,146.31,146.29,203.2938]
[1751741958483,6.8328,146.32,146.29,203.2938]
[1751741958687,15.5780084,146.31,146.29,196.46]
[1751741958885,6.8331,146.31,146.29,196.46]
[1751741961585,6.8331,146.31,146.28,6.8343]
[1751741961786,6.8331,146.31,146.29,196.48]
[1751741962988,8.75510954,146.3,146.29,196.48]
[1751741969393,8.75510954,146.3,146.28,6.8344]
[1751741969596,6.8331,146.31,146.29,196.4]
[1751741969793,8.75813024,146.3,146.29,196.4]
[1751741969996,8.75813024,146.3,146.29,203.234]
[1751741970397,13.47610451,146.3,146.29,203.234]
[1751741973798,13.47610451,146.3,146.29,206.27629111]
[1751741976600,13.47610451,146.3,146.29,203.234]
[1751741977302,16.01774656,146.3,146.29,203.234]
[1751741987608,3.04229111,146.33,146.31,6.8329]
[1751741987805,3.04229111,146.33,146.32,196.2]
[1751741988005,10.41379351,146.33,146.32,196.2]
[1751741988405,5.60811279,146.33,146.32,196.2]
[1751741988600,2.56582168,146.33,146.32,196.2]
[1751741989900,9.54512536,146.36,146.32,199.24229111]
[1751741990104,2.56667783,146.35,146.32,199.24229111]
[1751741990306,3.04229111,146.36,146.33,6.8319]
[1751741990506,9.87329111,146.36,146.33,6.8319]
[1751741991009,3.04229111,146.36,146.34,6.8314]
[1751741991209,9.87289111,146.37,146.35,196.26]
[1751741991405,4.80211433,146.36,146.35,196.26]
[1751741991910,9.87289111,146.37,146.35,196.26]
[1751741993514,9.87289111,146.37,146.35,196.24]
[1751741999615,13.51735597,146.36,146.35,196.24]
[1751742000115,13.51735597,146.36,146.35,203.0712]
[1751742001518,13.51735597,146.36,146.35,196.24]
[1751742002419,16.55964708,146.36,146.35,196.24]
[1751742003317,8.7649971,146.36,146.35,196.24]
[1751742003520,23.39973401,146.36,146.35,196.24]
[1751742003721,25.89987479,146.36,146.35,196.24]
[1751742003915,23.39973401,146.36,146.35,196.24]
[1751742004116,25.89994823,146.36,146.35,196.24]
[1751742005419,23.39973401,146.36,146.35,196.24]
[1751742005720,25.89980784,146.36,146.35,196.24]
[1751742006321,19.06910784,146.36,146.31,46.44]
[1751742006620,3.04229111,146.33,146.31,242.62]
[1751742007017,3.04229111,146.33,146.31,46.44]
[1751742007220,6.8317,146.34,146.31,249.4928]
[1751742007425,11.81009426,146.33,146.31,249.4928]
[1751742007724,3.04229111,146.33,146.31,249.4928]
[1751742008312,11.80971712,146.32,146.31,46.44]
[1751742008520,11.80971712,146.32,146.29,196.26]
[1751742008824,3.04229111,146.31,146.3,6.8335]
[1751742010024,9.87499111,146.32,146.3,6.8335]
[1751742010627,8.76804337,146.31,146.3,6.8335]
[1751742010820,13.5386863,146.31,146.3,6.8335]
[1751742011221,8.76804337,146.31,146.3,6.8335]
[1751742011429,8.76804337,146.31,146.29,203.0938]
[1751742011624,9.87499111,146.32,146.29,203.0938]
[1751742011824,8.72114446,146.31,146.29,203.0938]
[1751742012125,9.87499111,146.32,146.29,203.0938]
[1751742012326,8.7217386,146.31,146.29,203.0938]
[1751742012523,9.87499111,146.32,146.29,203.0938]
[1751742012724,8.68744922,146.31,146.29,203.0938]
[1751742012925,9.87499111,146.32,146.29,203.0938]
[1751742013135,8.68744922,146.31,146.29,203.0938]
[1751742013423,9.87499111,146.32,146.29,203.0938]
[1751742013722,8.68777464,146.31,146.29,203.0938]
[1751742013928,9.87499111,146.32,146.29,203.0938]
[1751742014229,8.68777464,146.31,146.3,196.24]
[1751742015423,15.52087464,146.31,146.3,196.24]
[1751742015629,18.56316575,146.31,146.3,196.24]
[1751742016327,18.56316575,146.31,146.29,196.24]
[1751742016528,9.87539111,146.31,146.29,203.0739]
[1751742022231,9.87539111,146.31,146.29,196.24]
[1751742022729,9.87539111,146.31,146.29,203.0739]
[1751742022930,3.04229111,146.31,146.29,203.0739]
[1751742023827,6.8323,146.33,146.3,6.8333]
[1751742024035,18.88197219,146.32,146.3,6.8333]
[1751742024233,13.35898135,146.31,146.3,6.8333]
[1751742024834,13.35898135,146.31,146.29,196.24]
[1751742025127,9.87529111,146.32,146.29,196.24]
[1751742025334,13.35923226,146.31,146.3,6.8335]
[1751742025538,3.04229111,146.35,146.3,3.04229111]
[1751742025837,14.28678569,146.37,146.31,3.04229111]
[1751742025838,15.85064627,146.34,146.31,3.04229111]
[1751742026142,4.6785437,146.33,146.32,6.8322]
[1751742027239,6.8314,146.35,146.32,6.8322]
[1751742027540,13.37106785,146.34,146.32,9.87449111]
[1751742027730,6.8314,146.35,146.32,9.87449111]
[1751742027931,13.38197242,146.34,146.32,9.87449111]
[1751742028134,6.8314,146.35,146.32,9.87449111]
[1751742028335,13.38258438,146.34,146.32,9.87449111]
[1751742028634,6.8314,146.35,146.33,6.8321]
[1751742028834,13.38265378,146.34,146.33,6.8321]
[1751742033145,13.38265378,146.34,146.31,46.44]
[1751742033337,3.04229111,146.32,146.31,46.44]
[1751742033538,18.9638947,146.32,146.31,46.44]
[1751742033736,16.47572052,146.32,146.3,6.8335]
[1751742033937,8.71982085,146.31,146.3,6.8335]
[1751742034643,8.71982085,146.31,146.29,6.8338]
[1751742034831,9.87519111,146.32,146.29,6.8338]
[1751742035036,8.72018377,146.31,146.29,6.8338]
[1751742035231,6.8332,146.31,146.29,6.8338]
[1751742035736,9.87549111,146.31,146.28,202.9543]
[1751742036136,8.70110819,146.3,146.28,6.8343]
[1751742036336,9.87549111,146.31,146.28,6.8343]
[1751742036544,8.70107237,146.3,146.28,6.8343]
[1751742036742,9.87549111,146.31,146.28,6.8343]
[1751742036943,8.70107237,146.3,146.28,6.8343]
[1751742037245,9.87549111,146.31,146.28,6.8343]
[1751742037542,8.70133435,146.3,146.28,6.8343]
[1751742037840,9.87549111,146.31,146.29,6.8339]
[1751742038642,3.04229111,146.31,146.29,6.8339]
[1751742039539,9.87539111,146.31,146.29,6.8339]
[1751742039841,9.87539111,146.31,146.28,6.8342]
[1751742040044,9.56058569,146.34,146.28,6.8342]
[1751742040045,11.74562743,146.3,146.28,202.9342]
[1751742040341,3.04229111,146.3,146.28,196.1]
[1751742040540,3.04229111,146.29,146.27,46.44]
[1751742040739,3.04229111,146.28,146.27,242.54]
[1751742041744,3.04229111,146.28,146.27,46.44]
[1751742042042,3.04229111,146.28,146.27,242.54]
[1751742042545,9.87659111,146.29,146.27,242.54]
[1751742043044,9.87659111,146.29,146.27,46.44]
[1751742043244,9.87659111,146.29,146.27,242.52]
[1751742043449,9.87659111,146.29,146.27,46.44]
[1751742043646,8.6796053,146.28,146.27,242.52]
[1751742044144,8.6796053,146.28,146.27,46.44]
[1751742044345,8.6796053,146.28,146.27,242.52]
[1751742046040,9.87659111,146.29,146.27,242.52]
[1751742046247,8.67044938,146.28,146.27,242.52]
[1751742049649,8.67044938,146.28,146.27,249.3549]
[1751742049947,9.87609111,146.3,146.27,249.3549]
[1751742050149,13.38713594,146.29,146.27,249.3549]
[1751742050349,9.87609111,146.3,146.27,249.3549]
[1751742050652,13.38758005,146.29,146.27,249.3549]
[1751742050845,9.87609111,146.3,146.27,249.3549]
[1751742051045,13.39672989,146.29,146.27,249.3549]
[1751742051248,9.87609111,146.3,146.27,249.3549]
[1751742051454,13.39702505,146.29,146.27,249.3549]
[1751742051747,9.87609111,146.3,146.27,249.3549]
[1751742051948,13.40354501,146.29,146.27,249.3549]
[1751742052149,9.87609111,146.3,146.27,249.3549]
[1751742052350,13.40520053,146.29,146.27,249.3549]
[1751742052544,9.87609111,146.3,146.27,249.3549]
[1751742052750,13.40684815,146.29,146.27,249.3549]
[1751742052950,9.87609111,146.3,146.27,249.3549]
[1751742053150,13.40684815,146.29,146.27,249.3549]
[1751742053346,9.87609111,146.3,146.27,249.3549]
[1751742053547,13.4078863,146.29,146.27,249.3549]
[1751742053747,9.87609111,146.3,146.27,249.3549]
[1751742053951,13.4078863,146.29,146.27,249.3549]
[1751742054153,9.87609111,146.3,146.27,249.3549]
[1751742054347,13.40761354,146.29,146.27,249.3549]
[1751742054547,9.87609111,146.3,146.27,249.3549]
[1751742054748,13.40761354,146.29,146.27,249.3549]
[1751742054949,9.87609111,146.3,146.27,249.3549]
[1751742055149,13.40761354,146.29,146.27,249.3549]
[1751742055447,9.87609111,146.3,146.27,249.3549]
[1751742055647,13.40739731,146.29,146.27,249.3549]
[1751742055844,9.87609111,146.3,146.27,249.3549]
[1751742056045,13.39824982,146.29,146.27,249.3549]
[1751742056250,9.87609111,146.3,146.27,249.3549]
[1751742056451,13.39789971,146.29,146.27,249.3549]
[1751742056658,9.87609111,146.3,146.27,249.3549]
[1751742056858,13.40214045,146.29,146.27,249.3549]
[1751742057049,9.87609111,146.3,146.27,249.3549]
[1751742057250,13.40248421,146.29,146.27,249.3549]
[1751742057450,9.87609111,146.3,146.27,249.3549]
[1751742057653,13.40239425,146.29,146.27,249.3549]
[1751742057946,9.87609111,146.3,146.27,249.3549]
[1751742058155,13.40251293,146.29,146.27,249.3549]
[1751742058353,9.87609111,146.3,146.27,249.3549]
[1751742058555,13.40223337,146.29,146.27,249.3549]
[1751742058755,6.8341,146.29,146.27,242.52]
[1751742060654,3.04229111,146.31,146.28,3.04229111]
[1751742060855,15.88091367,146.3,146.29,196.1]
[1751742061059,13.40264168,146.3,146.29,205.97609111]
[1751742061260,9.56058569,146.34,146.29,199.14229111]
[1751742061462,9.56058569,146.35,146.33,3.04229111]
[1751742061759,21.7985768,146.38,146.34,199.14229111]
[1751742062071,7.27981534,146.37,146.36,9.87299111]
[1751742062356,7.27981534,146.37,146.36,205.97299111]
[1751742062952,2.47796195,146.37,146.36,205.97299111]
[1751742063754,2.47796195,146.37,146.36,202.9307]
[1751742064160,2.47561777,146.37,146.36,202.9307]
[1751742064355,6.8293,146.4,146.36,202.9307]
[1751742064555,2.47461086,146.39,146.36,249.3107]
[1751742064749,6.8293,146.4,146.36,249.3107]
[1751742064953,6.8293,146.4,146.37,6.8302]
[1751742068464,6.8294,146.39,146.36,249.3105]
[1751742071567,6.8298,146.38,146.36,242.48]
[1751742071770,2.4019,146.4,146.36,242.48]
[1751742072466,6.8296,146.39,146.36,242.48]
[1751742075178,6.8296,146.39,146.37,196.02]
[1751742078979,6.829,146.4,146.37,202.8501]
[1751742079481,6.8294,146.39,146.37,196.02]
[1751742080779,6.8298,146.38,146.37,196.02]
[1751742081486,6.8296,146.39,146.37,196.02]
[1751742085786,9.86924651,146.39,146.37,196.02]
[1751742090485,6.8298,146.38,146.37,196.02]
[1751742093590,9.86914651,146.39,146.37,196.02]
[1751742093899,6.8295,146.39,146.37,196.02]
[1751742095487,9.86914651,146.39,146.37,196.02]
[1751742096596,6.8295,146.39,146.37,196.02]
[1751742096801,6.8298,146.38,146.37,196.02]
[1751742101596,23.80174906,146.38,146.31,592.97964651]
[1751742101896,6.8321,146.33,146.32,46.34]
[1751742102091,6.8321,146.33,146.28,46.34]
[1751742102092,11.72368627,146.33,146.28,46.34]
[1751742102297,3.03964651,146.3,146.29,195.98]
[1751742102686,9.87344651,146.3,146.28,46.34]
[1751742102889,9.87344651,146.3,146.29,195.98]
[1751742103897,6.8332,146.31,146.29,195.98]
[1751742105300,6.8332,146.31,146.28,53.1744]
[1751742105501,6.8332,146.31,146.29,195.98]
[1751742107396,6.8332,146.31,146.3,196.0]
[1751742107599,15.51442907,146.31,146.3,196.0]
[1751742107900,6.8332,146.31,146.3,196.0]
[1751742109105,9.51997893,146.36,146.3,196.0]
[1751742109302,4.75539124,146.34,146.3,196.0]
[1751742109504,8.67883493,146.33,146.3,196.0]
[1751742109702,4.75539124,146.34,146.3,196.0]
[1751742109904,8.67663977,146.33,146.3,202.8333]
[1751742110504,11.58729124,146.34,146.3,202.8333]
[1751742115906,6.8312,146.36,146.3,196.0]
[1751742116109,58.30714867,146.37,146.3,196.0]
[1751742116110,4.75539124,146.35,146.3,196.0]
[1751742116414,4.75539124,146.35,146.31,46.36]
[1751742116602,11.58689124,146.35,146.32,6.8325]
[1751742122805,6.8315,146.35,146.32,6.8325]
[1751742123611,6.8315,146.35,146.33,6.8321]
[1751742124109,6.8315,146.35,146.31,46.36]
[1751742124310,6.8315,146.35,146.32,6.8323]
[1751742125812,3.04138591,146.34,146.32,6.8323]
[1751742129915,3.04138591,146.34,146.33,6.8321]
[1751742130109,3.04138591,146.35,146.33,6.8321]
[1751742130414,3.04138591,146.35,146.33,202.8521]
[1751742131408,9.87268591,146.35,146.33,202.8521]
[1751742132916,3.04138591,146.34,146.33,196.02]
[1751742133816,6.8313,146.35,146.33,196.02]
[1751742134016,3.04138591,146.34,146.33,196.02]
[1751742141323,3.04138591,146.35,146.33,202.8521]
[1751742141619,3.04138591,146.35,146.33,196.02]
[1751742141921,9.87258591,146.35,146.33,196.02]
[1751742142414,3.04138591,146.34,146.33,196.02]
[1751742146125,3.04138591,146.34,146.33,202.8521]
[1751742146425,11.72947295,146.34,146.33,202.8521]
[1751742147023,11.72789709,146.34,146.33,202.8521]
[1751742147224,8.68651118,146.34,146.33,202.8521]
[1751742148523,23.74303672,146.34,146.33,196.02]
[1751742149034,30.57473672,146.34,146.33,196.02]
[1751742149629,23.74303672,146.34,146.33,196.02]
[1751742152033,23.74587457,146.34,146.33,196.02]
[1751742153135,23.74587457,146.34,146.32,6.8326]
[1751742153337,16.40697826,146.33,146.32,6.8326]
[1751742153535,18.89120183,146.33,146.32,202.8126]
[1751742154137,18.89120183,146.33,146.32,195.98]
[1751742154736,18.88852892,146.33,146.32,195.98]
[1751742155836,25.72062892,146.33,146.32,195.98]
[1751742156840,30.55486461,146.33,146.32,195.98]
[1751742157033,6.8326,146.32,146.31,46.36]
[1751742157234,18.88300959,146.32,146.27,636.44]
[1751742157439,3.04138591,146.29,146.28,202.8343]
[1751742158340,3.04138591,146.3,146.28,202.8343]
[1751742158542,3.04138591,146.3,146.29,196.0]
[1751742159746,11.71355939,146.3,146.29,196.0]
[1751742162246,3.04138591,146.3,146.29,196.0]
[1751742162444,7.66476732,146.3,146.27,636.44]
[1751742162639,3.04138591,146.28,146.25,85.38532612]
[1751742162841,3.04138591,146.26,146.24,46.34]
[1751742163043,3.04138591,146.25,146.24,53.1763]
[1751742163246,3.04138591,146.27,146.24,249.1763]
[1751742163446,3.04138591,146.27,146.25,6.8356]
[1751742166048,3.04138591,146.26,146.24,46.34]
[1751742166343,3.04138591,146.26,146.25,196.02]
[1751742166747,8.75285292,146.26,146.25,196.02]
[1751742167137,3.04138591,146.27,146.25,196.02]
[1751742167646,11.96269893,146.31,146.25,196.02]
[1751742167647,3.04138591,146.26,146.25,196.02]
[1751742168550,3.04138591,146.27,146.25,196.02]
[1751742169358,3.04138591,146.27,146.25,202.8559]
[1751742169550,6.8347,146.28,146.25,202.8559]
[1751742169750,3.04138591,146.27,146.25,202.8559]
[1751742170445,3.04138591,146.28,146.25,196.02]
[1751742170649,3.04138591,146.28,146.25,199.06138591]